fUST/lending_fUST_20251108
["ID","MTS","AMOUNT","RATE_DAILY","PERIOD"]
[393376839,1762547448904,-4053.16145565,0.00023073,2]
[393376840,1762547448916,-5000.0,0.00023086,2]
[393376841,1762547448926,-2500.0,0.00023114,2]
[393376842,1762547448938,-200.0,0.00023176,2]
[393376843,1762547448949,-5200.58,0.00023177,2]
[393376844,1762547448960,-7525.29,0.00023177,2]
[393376845,1762547448972,-723.40387352,0.0002319,2]
[393376846,1762547448983,-294.853713,0.00023288,7]
[393376847,1762547448994,-151.0,0.00023288,7]
[393376848,1762547449005,-151.0,0.00023288,7]
[393376849,1762547449016,-151.0,0.00023288,7]
[393376850,1762547449027,-151.0,0.00023288,7]
[393376851,1762547449038,-151.0,0.00023288,7]
[393376852,1762547449049,-151.0,0.00023288,7]
[393376853,1762547449060,-151.0,0.00023288,7]
[393376854,1762547449071,-151.0,0.00023288,7]
[393376855,1762547449082,-151.0,0.00023288,7]
[393376856,1762547449093,-151.0,0.00023288,7]
[393376857,1762547449103,-151.0,0.00023288,7]
[393376858,1762547449115,-250.166888,0.00023288,7]
[393376859,1762547449127,-151.0,0.00023288,7]
[393376860,1762547449137,-152.839059,0.00023288,7]
[393376861,1762547449148,-152.320805,0.00023288,7]
[393376862,1762547449159,-500.0,0.00023288,7]
[393376863,1762547449170,-500.0,0.00023288,7]
[393376864,1762547449182,-500.0,0.00023288,7]
[393376865,1762547449192,-500.0,0.00023288,7]
[393376866,1762547449203,-500.0,0.00023288,7]
[393376867,1762547449214,-500.0,0.00023288,7]
[393376868,1762547449225,-500.0,0.00023288,7]
[393376869,1762547449236,-500.0,0.00023288,7]
[393376870,1762547449247,-500.0,0.00023288,7]
[393376871,1762547449367,-500.0,0.00023288,7]
[393376872,1762547449381,-500.0,0.00023288,7]
[393376873,1762547449390,-500.0,0.00023288,7]
[393376874,1762547449400,-500.0,0.00023288,7]
[393376875,1762547449409,-500.0,0.00023288,7]
[393376876,1762547449418,-500.0,0.00023288,7]
[393376877,1762547449427,-500.0,0.00023288,7]
[393376878,1762547449437,-151.0,0.00023288,7]
[393376879,1762547449446,-151.0,0.00023288,7]
[393376880,1762547449455,-151.0,0.00023288,7]
[393376881,1762547449465,-151.0,0.00023288,7]
[393376882,1762547449475,-151.0,0.00023288,7]
[393376883,1762547449489,-160.16078663,0.00023288,7]
[393376884,1762547449500,-153.063757,0.00023288,7]
[393376885,1762547449510,-151.0,0.00023288,7]
[393376886,1762547449519,-237.85075,0.00023288,7]
[393376887,1762547449530,-237.85075,0.00023288,7]
[393376888,1762547449539,-237.85075,0.00023288,7]
[393376889,1762547449550,-237.85075,0.00023288,7]
[393376890,1762547449560,-237.85075,0.00023288,7]
[393376891,1762547449572,-237.85075,0.00023288,7]
[393376892,1762547449581,-237.85075,0.00023288,7]
[393376893,1762547449591,-237.85075,0.00023288,7]
[393376894,1762547449601,-237.85075,0.00023288,7]
[393376895,1762547449612,-237.85075,0.00023288,7]
[393376896,1762547449622,-237.85075,0.00023288,7]
[393376897,1762547449631,-237.85075,0.00023288,7]
[393376898,1762547449641,-237.85075,0.00023288,7]
[393376899,1762547449650,-237.85075,0.00023288,7]
[393376900,1762547449660,-237.85075,0.00023288,7]
[393376901,1762547449669,-237.85075,0.00023288,7]
[393376902,1762547449679,-160.453012,0.00023288,7]
[393376903,1762547449688,-604.158413,0.00023288,7]
[393376904,1762547449699,-604.158413,0.00023288,7]
[393376905,1762547449710,-604.158413,0.00023288,7]
[393376906,1762547449719,-604.158413,0.00023288,7]
[393376907,1762547449728,-604.158413,0.00023288,7]
[393376908,1762547449737,-604.158413,0.00023288,7]
[393376909,1762547449747,-604.158413,0.00023288,7]
[393376910,1762547449757,-604.158413,0.00023288,7]
[393376911,1762547449767,-604.158413,0.00023288,7]
[393376912,1762547449776,-604.158413,0.00023288,7]
[393376913,1762547449786,-604.158413,0.00023288,7]
[393376914,1762547449796,-604.158413,0.00023288,7]
[393376915,1762547449806,-604.158413,0.00023288,7]
[393376916,1762547449816,-604.158413,0.00023288,7]
[393376917,1762547449826,-604.158413,0.00023288,7]
[393376918,1762547449835,-604.158413,0.00023288,7]
[393376919,1762547449845,-156.782476,0.00023288,7]
[393376920,1762547449854,-169.779585,0.00023288,7]
[393376921,1762547449865,-151.0,0.00023288,7]
[393376922,1762547449875,-151.0,0.00023288,7]
[393376923,1762547449884,-155.578702,0.00023288,7]
[393376924,1762547449893,-154.420354,0.00023288,7]
[393376925,1762547449903,-151.0,0.00023288,7]
[393376926,1762547449913,-151.0,0.00023288,7]
[393376927,1762547449923,-174.699677,0.00023288,7]
[393376928,1762547449933,-151.0,0.00023288,7]
[393376929,1762547449942,-151.0,0.00023288,7]
[393376930,1762547449951,-298.695619,0.00023288,7]
[393376931,1762547449960,-211.362756,0.00023288,7]
[393376932,1762547449970,-211.362756,0.00023288,7]
[393376933,1762547449980,-211.362756,0.00023288,7]
[393376934,1762547449989,-211.362756,0.00023288,7]
[393376935,1762547449999,-211.362756,0.00023288,7]
[393376936,1762547450008,-211.362756,0.00023288,7]
[393376937,1762547450017,-211.362756,0.00023288,7]
[393376938,1762547450027,-211.362756,0.00023288,7]
[393376939,1762547450036,-211.362756,0.00023288,7]
[393376940,1762547450046,-211.362756,0.00023288,7]
[393376941,1762547450056,-211.362756,0.00023288,7]
[393376942,1762547450066,-211.362756,0.00023288,7]
[393376943,1762547450076,-152.884092,0.00023288,7]
[393376944,1762547450085,-163.102522,0.00023288,7]
[393376945,1762547450095,-151.0,0.00023288,7]
[393376946,1762547450106,-220.707095,0.00023365,2]
[393376947,1762547450117,-151.0,0.000234,8]
[393376948,1762547450126,-2696.69,0.000235,7]
[393376949,1762547450136,-960.0,0.00023571,2]
[393376950,1762547450146,-912.22203687,0.00023574,2]
[393376951,1762547450156,-1000.90362755,0.00023574,2]
[393376952,1762547450166,-368.32,0.000236,7]
[393376953,1762547450175,-1125.84111708,0.0002362,2]
[393376954,1762547450185,-2500.0,0.00023661,2]
[393376955,1762547450195,-151.0,0.000241,5]
[393376956,1762547450204,-1060.0,0.00024119,2]
[393376957,1762547450214,-151.0,0.00024164,7]
[393376958,1762547450223,-151.0,0.000242,5]
[393376959,1762547450233,-151.0,0.000242,5]
[393376960,1762547450244,-168.89940387,0.00024213,2]
[393376961,1762547450261,-267.91060383,0.000243,2]
[393376962,1762547450272,-1152.0,0.00024316,2]
[393376963,1762547450282,-151.0,0.000244,6]
[393376964,1762547450293,-628.0,0.00024418,2]
[393376965,1762547450303,-2166.0,0.00024418,2]
[393376966,1762547450313,-986.0,0.00024418,2]
[393376967,1762547450322,-412.0,0.00024418,2]
[393376968,1762547450331,-1540.19558023,0.00024448,4]
[393376969,1762547450342,-332.017598,0.00024485,2]
[393376970,1762547450351,-777.27112944,0.00024598,5]
[393376971,1762547450362,-500.0,0.00024658,2]
[393376972,1762547450372,-171.85961055,0.00024664,5]
[393376973,1762547450382,-866.60662878,0.00024667,2]
[393376974,1762547450392,-500.0,0.00024713,2]
[393376975,1762547450402,-1000.0,0.00024732,20]
[393376976,1762547450423,-244.0,0.00024732,20]
[393376977,1762547450433,-535.0,0.00024768,2]
[393376978,1762547450443,-500.0,0.00024773,2]
[393376979,1762547450452,-560.37141686,0.00024773,2]
[393376980,1762547450463,-151.0,0.000248,7]
[393376981,1762547450486,-151.0,0.000248,7]
[393376982,1762547450500,-500.0,0.000248,7]
[393376983,1762547450510,-500.0,0.000248,7]
[393376984,1762547450520,-500.0,0.000248,7]
[393376985,1762547450530,-500.0,0.000248,7]
[393376986,1762547450540,-151.0,0.000248,7]
[393376987,1762547450551,-237.85075,0.000248,7]
[393376988,1762547450560,-237.85075,0.000248,7]
[393376989,1762547450570,-237.85075,0.000248,7]
[393376990,1762547450580,-237.850753,0.000248,7]
[393376991,1762547450590,-604.158413,0.000248,7]
[393376992,1762547450599,-604.158413,0.000248,7]
[393376993,1762547450609,-604.158413,0.000248,7]
[393376994,1762547450622,-604.158412,0.000248,7]
[393376995,1762547450632,-49938.5101204,0.000248,2]
[393376996,1762547450642,-211.362756,0.000248,7]
[393376997,1762547450652,-211.362756,0.000248,7]
[393376998,1762547450662,-211.362756,0.000248,7]
[393376999,1762547450673,-211.362756,0.000248,7]
[393377000,1762547450683,-179.86018725,0.0002489,2]
[393377001,1762547450693,-4053.16145565,0.0002489,2]
[393377002,1762547450703,-363095.71574202,0.000249,2]
[393377003,1762547451004,-467.03741664,0.000249,2]
[393377004,1762547775372,-158.86447604,0.00016514,2]
[393377005,1762547778939,-256.02365009,0.00016514,2]
[393377006,1762547783388,-187.48984974,0.00016514,2]
[393377007,1762547785021,-241.31398231,0.00016514,2]
[393377008,1762547787149,-162.58174492,0.00016514,2]
[393377009,1762547790654,-213.70560024,0.00016514,2]
[393377010,1762547793383,-255.42743889,0.00016514,2]
[393377011,1762547796039,-232.24266194,0.00016514,2]
[393377012,1762547797516,-385.17931801,0.00016514,2]
[393377013,1762547801223,-211.98090437,0.00016514,2]
[393377014,1762547802940,-366.95278281,0.00016514,2]
[393377016,1762547816299,524.68311,0.00013699,2]
[393377017,1762547817049,-311.46363733,0.00016514,2]
[393377018,1762547819907,-206.95544964,0.00016514,2]
[393377019,1762547822051,-342.51955193,0.00016514,2]
[393377020,1762547824117,-180.23233086,0.00016514,2]
[393377021,1762547825652,-231.30102742,0.00016514,2]
[393377022,1762547827683,-188.53636267,0.00016514,2]
[393377023,1762547829223,-174.14009285,0.00016514,2]
[393377024,1762547831250,-284.61698476,0.00016514,2]
[393377025,1762547833833,-261.64173171,0.00016514,2]
[393377026,1762547848804,5000.0,0.00016504,2]
[393377027,1762547850135,-146.83042147,0.00016514,2]
[393377028,1762547850165,-120.84088229,0.00016846,2]
[393377029,1762547864526,163.65664654,0.00016836,2]
[393377030,1762547865222,-29.15911771,0.00016846,2]
[393377031,1762547865246,-137.25484004,0.00017002,2]
[393377032,1762547884219,150.0,0.000165,2]
[393377033,1762547884313,-198.37912129,0.00016832,2]
[393377034,1762547887077,-167.10015383,0.00016832,2]
[393377035,1762547892237,-151.46812148,0.00016832,2]
[393377036,1762547893805,-195.98064205,0.00016832,2]
[393377037,1762547895460,150.0,0.000165,2]
[393377038,1762547897108,-241.77145759,0.00016832,2]
[393377039,1762547899265,-159.59436354,0.00016832,2]
[393377040,1762547900928,-262.4581319,0.00016832,2]
[393377041,1762547903877,-499.57903162,0.00016832,2]
[393377042,1762547906024,-306.69884262,0.00016832,2]
[393377043,1762547906291,150.0,0.000165,2]
[393377044,1762547908902,-223.4119916,0.00016832,2]
[393377045,1762547914812,-207.85200226,0.00016832,2]
[393377046,1762547916391,-455.42158726,0.00016832,2]
[393377047,1762547917172,150.0,0.000165,2]
[393377048,1762547918546,-267.97438449,0.00016832,2]
[393377049,1762547921200,-155.79163807,0.00016832,2]
[393377050,1762547923262,-158.4275656,0.00016832,2]
[393377051,1762547925469,-238.39793954,0.00016832,2]
[393377052,1762547927545,-399.3756819,0.00016832,2]
[393377053,1762547929672,-257.83079335,0.00016832,2]
[393377054,1762547960075,-452.48655001,0.00016832,2]
[393377055,1762547975217,-500.01748358,0.000169,2]
[393377056,1762547983033,5000.0,0.000169,2]
[393377057,1762547990853,2811.87910683,0.000169,2]
[393377058,1762547999326,1012.2998407,0.00016907,2]
[393377059,1762548002576,150.0,0.000169,2]
[393377060,1762548007736,5000.0,0.00016907,2]
[393377061,1762548013620,150.0,0.000169,2]
[393377062,1762548015817,875.83105247,0.00016907,2]
[393377063,1762548015841,866.40412757,0.00016907,2]
[393377064,1762548030899,2573.1459754,0.00016907,2]
[393377065,1762548054207,4753.53361272,0.00016907,2]
[393377066,1762548054484,215.6914277,0.00016319,2]
[393377068,1762548066035,150.0,0.000169,2]
[393377069,1762548076761,150.0,0.000169,2]
[393377070,1762548077097,1291.23485661,0.00016907,2]
[393377071,1762548077120,3405.32016413,0.00016907,2]
[393377072,1762548085340,2188.12089317,0.00016907,2]
[393377073,1762548087681,150.0,0.000169,2]
[393377074,1762548097892,150.0,0.000169,2]
[393377075,1762548109015,150.0,0.000169,2]
[393377076,1762548121628,150.0,0.000169,2]
[393377077,1762548122498,3806.5689427,0.00016907,2]
[393377078,1762548122521,739.99607804,0.00016907,2]
[393377079,1762548122572,150.0,0.000169,2]
[393377080,1762548131318,3275.52575337,0.00016907,2]
[393377081,1762548131839,150.0,0.000169,2]
[393377082,1762548133978,150.0,0.000169,2]
[393377083,1762548142298,150.0,0.000169,2]
[393377084,1762548145027,150.0,0.000169,2]
[393377085,1762548146934,303.44497926,0.00016907,2]
[393377086,1762548154735,1724.47424663,0.00016907,2]
[393377087,1762548170445,3206.5689427,0.00016907,2]
[393377088,1762548170469,553.4510573,0.00016907,2]
[393377089,1762548178326,5000.0,0.00016907,2]
[393377095,1762548300434,-164.84579225,0.00016415,2]
[393377096,1762548304307,-483.51699598,0.00016415,2]
[393377097,1762548308629,-172.41846922,0.00016415,2]
[393377098,1762548390012,1815.32506972,0.0001611,2]
[393377099,1762548449585,926.3458209,0.00016037,2]
[393377100,1762548483088,3583.56991224,0.0001611,2]
[393377103,1762548603332,150.0,0.000161,2]
[393377104,1762548609947,-290.15057885,0.00016733,2]
[393377105,1762548609969,-63.15246485,0.00016733,2]
[393377106,1762548613587,150.0,0.000161,2]
[393377107,1762548624526,-749.84753515,0.00016733,2]
[393377108,1762548630783,353.3030437,0.00016733,2]
[393377109,1762548631334,18174.9613851,0.00037082,20]
[393377174,1762548632365,-162.27537999,0.00016783,2]
[393377176,1762548632374,-2404.6785837,0.00017054,2]
[393377178,1762548632385,-1200.0,0.00017152,2]
[393377180,1762548632395,-1200.0,0.00017152,2]
[393377182,1762548632404,-160.0,0.00017153,2]
[393377184,1762548632413,-300.0,0.00017153,2]
[393377185,1762548632423,-300.0,0.00017153,2]
[393377187,1762548632432,-300.0,0.00017153,2]
[393377189,1762548632441,-300.0,0.00017153,2]
[393377192,1762548632451,-300.0,0.00017153,2]
[393377194,1762548632460,-50000.0,0.00017154,2]
[393377196,1762548632469,-500.0,0.00017173,2]
[393377197,1762548632479,-500.0,0.00017472,2]
[393377200,1762548632489,-500.0,0.00017472,2]
[393377202,1762548632498,-500.0,0.00017472,2]
[393377204,1762548632509,-267.67130376,0.00017473,2]
[393377206,1762548632519,-500.0,0.00017473,2]
[393377208,1762548632528,-500.0,0.00017473,2]
[393377210,1762548632537,-599.05248367,0.00017473,2]
[393377212,1762548632546,-501.9660549,0.00017473,2]
[393377213,1762548632555,-214.78437877,0.00017473,2]
[393377215,1762548632563,-582.24090669,0.00017473,2]
[393377217,1762548632572,-419.09934698,0.00017473,2]
[393377219,1762548632582,-500.0,0.00017493,2]
[393377221,1762548632591,-500.0,0.00017493,2]
[393377223,1762548632600,-500.0,0.00017493,2]
[393377225,1762548632610,-300.0,0.00017498,2]
[393377227,1762548632619,-300.0,0.00017498,2]
[393377240,1762548632732,-300.0,0.00017498,2]
[393377243,1762548632750,-300.0,0.00017498,2]
[393377245,1762548632759,-300.0,0.00017498,2]
[393377247,1762548632771,-300.0,0.00017498,2]
[393377249,1762548632780,-300.0,0.00017498,2]
[393377251,1762548632788,-300.0,0.00017498,2]
[393377253,1762548632797,-300.0,0.00017498,2]
[393377255,1762548632807,-300.0,0.00017498,2]
[393377257,1762548632815,-300.0,0.00017498,2]
[393377258,1762548632824,-300.0,0.00017498,2]
[393377261,1762548632833,-300.0,0.00017498,2]
[393377263,1762548632843,-300.0,0.00017498,2]
[393377265,1762548632856,-300.0,0.00017498,2]
[393377267,1762548632865,-600.0,0.00017498,2]
[393377269,1762548632874,-1000.0,0.00017721,2]
[393377271,1762548632885,-1573.30323995,0.00018268,2]
[393377273,1762548632894,-500.0,0.000183,2]
[393377275,1762548632903,-6702.18620284,0.00018301,2]
[393377277,1762548632912,-12853.85761078,0.00018426,2]
[393377279,1762548632923,-1200.0,0.00018731,2]
[393377281,1762548632933,-300.0,0.00018732,2]
[393377282,1762548632942,-420.0,0.00018732,2]
[393377285,1762548632952,-420.0,0.00018732,2]
[393377286,1762548632961,-420.0,0.00018732,2]
[393377287,1762548632970,-191.48494839,0.00018783,2]
[393377288,1762548632979,-1200.0,0.00018824,2]
[393377289,1762548632988,-1202.00159955,0.00019117,2]
[393377290,1762548632997,-414.7891993,0.00019246,2]
[393377291,1762548633006,-500.0,0.00019247,2]
[393377292,1762548633015,-720.0,0.00019248,2]
[393377293,1762548633023,-5000.0,0.00019919,2]
[393377294,1762548633032,-160.0,0.00019966,2]
[393377295,1762548633041,-399.72441935,0.00019966,2]
[393377296,1762548633050,-160.0,0.00019966,2]
[393377297,1762548633059,-524.68311,0.00020187,2]
[393377298,1762548633068,-221.49534951,0.00020346,2]
[393377299,1762548633077,-180.0,0.00020456,2]
[393377300,1762548633086,-180.0,0.00020456,2]
[393377301,1762548633094,-587.0,0.00020456,2]
[393377302,1762548633104,-220.69451679,0.00020783,2]
[393377303,1762548633113,-899.330528,0.00020876,2]
[393377304,1762548633122,-375.537,0.00020944,2]
[393377305,1762548633133,-1202.00159955,0.00021161,2]
[393377306,1762548633142,-864.0,0.00021172,20]
[393377307,1762548633151,-449.17796085,0.00021534,2]
[393377308,1762548633160,-187.74472647,0.00021541,2]
[393377309,1762548633169,-628.0,0.00021641,2]
[393377310,1762548633178,-986.0,0.00021641,2]
[393377311,1762548633188,-2166.0,0.00021641,2]
[393377312,1762548633199,-294.65,0.00022,7]
[393377313,1762548633208,-152.0,0.00022,2]
[393377314,1762548633217,-592.0,0.00022151,2]
[393377315,1762548633226,-592.0,0.00022241,2]
[393377316,1762548633237,-592.0,0.00022311,2]
[393377317,1762548633249,-823.0,0.00022339,2]
[393377318,1762548633259,-592.0,0.0002234,2]
[393377319,1762548633268,-592.0,0.00022625,2]
[393377320,1762548633277,-592.0,0.00022634,2]
[393377321,1762548633286,-160.0,0.00022722,2]
[393377322,1762548633295,-592.0,0.00022743,2]
[393377323,1762548633304,-249.90408518,0.00022783,2]
[393377324,1762548633314,-592.0,0.000228,2]
[393377325,1762548633323,-1273.5511827,0.00022875,2]
[393377326,1762548633333,-592.0,0.00022891,2]
[393377327,1762548633342,-211.878812,0.00022898,2]
[393377328,1762548633351,-592.0,0.00022901,2]
[393377329,1762548633360,-592.0,0.0002297,2]
[393377330,1762548633370,-152.0,0.00023014,7]
[393377331,1762548633380,-1273.5511827,0.00023151,2]
[393377332,1762548633390,-592.0,0.00023169,2]
[393377333,1762548633399,-5000.0,0.00023169,2]
[393377334,1762548633408,-1202.00159955,0.00023206,3]
[393377335,1762548633418,-260.0,0.0002327,2]
[393377336,1762548633427,-151.0,0.00023288,7]
[393377337,1762548633436,-1000.0,0.0002329,20]
[393377338,1762548633447,-592.0,0.00023331,2]
[393377339,1762548633456,-592.0,0.00023359,2]
[393377340,1762548633465,-153.33703227,0.00023496,5]
[393377341,1762548633474,-1273.5511827,0.00023548,2]
[393377342,1762548633483,-1273.5511827,0.00023574,2]
[393377343,1762548633492,-592.0,0.0002359,2]
[393377344,1762548633501,-592.0,0.00023592,2]
[393377345,1762548633510,-360.0,0.00023818,2]
[393377346,1762548633519,-2404.67858363,0.00023852,2]
[393377347,1762548633528,-362.30590409,0.0002389,10]
[393377348,1762548633537,-160.39271661,0.00023917,2]
[393377349,1762548633550,-392.87713003,0.00023917,2]
[393377350,1762548633561,-720.28133606,0.00023917,2]
[393377351,1762548633570,-421.1230727,0.00023921,2]
[393377370,1762548637971,-366.1192981,0.0001749,2]
[393377371,1762548637980,-343.36035171,0.0001749,2]
[393377372,1762548637990,-500.0,0.0001749,2]
[393377373,1762548637999,-500.0,0.0001749,2]
[393377374,1762548638008,-500.0,0.0001749,2]
[393377375,1762548638018,-268.26787242,0.0001749,2]
[393377376,1762548638030,-231.73212758,0.0001749,2]
[393377377,1762548638040,-500.0,0.0001749,2]
[393377378,1762548638049,-90.6906708,0.0001749,2]
[393377379,1762548638061,-409.3093292,0.0001749,2]
[393377380,1762548638070,-235.73594852,0.0001749,2]
[393377382,1762548638081,-264.26405148,0.0001749,2]
[393377383,1762548638090,-500.0,0.0001749,2]
[393377384,1762548638099,-284.85506244,0.0001749,2]
[393377385,1762548638110,-92.26477083,0.0001749,2]
[393377386,1762548638119,-500.0,0.0001749,2]
[393377387,1762548638129,-500.0,0.0001749,2]
[393377388,1762548638139,-500.0,0.0001749,2]
[393377389,1762548638149,-500.0,0.0001749,2]
[393377390,1762548638158,-500.0,0.0001749,2]
[393377391,1762548638167,-500.0,0.0001749,2]
[393377392,1762548638176,-500.0,0.0001749,2]
[393377393,1762548638186,-500.0,0.0001749,2]
[393377394,1762548638195,-500.0,0.0001749,2]
[393377395,1762548638204,-500.0,0.0001749,2]
[393377396,1762548638213,-500.0,0.0001749,2]
[393377397,1762548638223,-500.0,0.0001749,2]
[393377398,1762548638232,-500.0,0.0001749,2]
[393377399,1762548638241,-500.0,0.0001749,2]
[393377400,1762548638251,-500.0,0.0001749,2]
[393377401,1762548638262,-500.0,0.0001749,2]
[393377402,1762548638272,-500.0,0.0001749,2]
[393377403,1762548638282,-500.0,0.0001749,2]
[393377404,1762548638292,-500.0,0.0001749,2]
[393377405,1762548638302,-521.89289778,0.0001749,2]
[393377406,1762548638312,-500.0,0.0001749,2]
[393377407,1762548638322,-500.0,0.0001749,2]
[393377408,1762548638332,-500.0,0.0001749,2]
[393377409,1762548638342,-450.0,0.0001749,2]
[393377410,1762548638352,-500.0,0.0001749,2]
[393377411,1762548638362,-472.06789796,0.0001749,2]
[393377412,1762548638372,-500.0,0.0001749,2]
[393377413,1762548638382,-500.0,0.0001749,2]
[393377414,1762548638396,-500.0,0.0001749,2]
[393377415,1762548638406,-500.0,0.0001749,2]
[393377416,1762548638416,-500.0,0.0001749,2]
[393377417,1762548638426,-500.0,0.0001749,2]
[393377418,1762548638436,-500.0,0.0001749,2]
[393377419,1762548638446,-500.0,0.0001749,2]
[393377420,1762548638456,-500.0,0.0001749,2]
[393377421,1762548638467,-500.0,0.0001749,2]
[393377422,1762548638570,-500.0,0.0001749,2]
[393377423,1762548638580,-500.0,0.0001749,2]
[393377424,1762548638590,-500.0,0.0001749,2]
[393377425,1762548638600,-500.0,0.0001749,2]
[393377426,1762548638610,-500.0,0.0001749,2]
[393377427,1762548638620,-500.0,0.0001749,2]
[393377428,1762548638629,-500.0,0.0001749,2]
[393377429,1762548638643,-500.0,0.0001749,2]
[393377430,1762548638653,-500.0,0.0001749,2]
[393377431,1762548638663,-500.0,0.0001749,2]
[393377432,1762548638673,-161.39107386,0.0001749,2]
[393377453,1762548640515,-3e-08,0.0001749,2]
[393377454,1762548640528,-338.60892611,0.0001749,2]
[393377455,1762548640538,-500.0,0.0001749,2]
[393377456,1762548640547,-500.0,0.0001749,2]
[393377457,1762548640557,-500.0,0.0001749,2]
[393377458,1762548640566,-500.0,0.0001749,2]
[393377459,1762548640576,-500.0,0.0001749,2]
[393377460,1762548640586,-500.0,0.0001749,2]
[393377461,1762548640595,-500.0,0.0001749,2]
[393377462,1762548640604,-500.0,0.0001749,2]
[393377463,1762548640613,-61.54325263,0.0001749,2]
[393377467,1762548643236,-438.45674737,0.0001749,2]
[393377468,1762548643245,-500.0,0.0001749,2]
[393377469,1762548643254,-500.0,0.0001749,2]
[393377470,1762548643263,-500.0,0.0001749,2]
[393377471,1762548643271,-500.0,0.0001749,2]
[393377472,1762548643280,-500.0,0.0001749,2]
[393377473,1762548643289,-500.0,0.0001749,2]
[393377474,1762548643298,-500.0,0.0001749,2]
[393377475,1762548643307,-500.0,0.0001749,2]
[393377476,1762548643315,-500.0,0.0001749,2]
[393377477,1762548643324,-202.60581248,0.0001749,2]
[393377478,1762548643333,-500.0,0.0001749,2]
[393377479,1762548643341,-500.0,0.0001749,2]
[393377480,1762548643350,-500.0,0.0001749,2]
[393377481,1762548643359,-160.0,0.00019966,2]
[393377482,1762548643368,-151.0,0.00023288,7]
[393377483,1762548643377,-170.8769273,0.00023921,2]
[393377484,1762548643385,-592.0,0.00023927,2]
[393377485,1762548643396,-592.0,0.00023932,2]
[393377486,1762548643404,-592.0,0.0002399,2]
[393377487,1762548643414,-294.65,0.00024,7]
[393377488,1762548643423,-168.89940388,0.00024013,2]
[393377489,1762548643431,-592.0,0.00024041,2]
[393377490,1762548643440,-592.0,0.00024111,2]
[393377491,1762548643449,-154.0,0.00024164,7]
[393377492,1762548643458,-1273.5511827,0.00024188,2]
[393377493,1762548643467,-592.0,0.00024248,2]
[393377494,1762548643477,-592.0,0.00024261,2]
[393377495,1762548643486,-592.0,0.00024265,2]
[393377496,1762548643495,-460.0,0.00024366,2]
[393377497,1762548643505,-1152.0,0.00024396,2]
[393377498,1762548643513,-500.0,0.00024404,2]
[393377499,1762548643522,-1273.5511827,0.0002443,2]
[393377500,1762548643531,-800.0,0.00024608,2]
[393377501,1762548643539,-264.58221374,0.00024624,5]
[393377502,1762548643548,-229.40159918,0.00024624,5]
[393377503,1762548643557,-628.0,0.00024641,2]
[393377504,1762548643566,-986.0,0.00024641,2]
[393377505,1762548643574,-2157.0,0.00024641,2]
[393377506,1762548643583,-800.0,0.00024674,2]
[393377507,1762548643592,-800.0,0.00024682,2]
[393377508,1762548643601,-211.878812,0.00024724,2]
[393377509,1762548643611,-1021.9907444,0.00024766,2]
[393377510,1762548643619,-279.11365358,0.00024783,2]
[393377511,1762548643632,-187.74472646,0.000248,2]
[393377512,1762548643645,-6658.46801612,0.000248,2]
[393377513,1762548643658,-179.86018724,0.000248,2]
[393377514,1762548643670,-211.422965,0.000248,7]